fUST/lending_fUST_20250605
["ID","MTS","AMOUNT","RATE_DAILY","PERIOD"]
[364390819,1749088244653,-1476.01847224,0.0002221,6]
[364390820,1749088244663,-1500.0,0.0002226,2]
[364390821,1749088244673,-450.0,0.00022357,2]
[364390822,1749088244682,-1450.61,0.00022357,2]
[364390824,1749088244692,-476.64,0.00022357,2]
[364390826,1749088244702,-837.2,0.00022357,2]
[364390827,1749088244711,-440.0,0.00022357,2]
[364390828,1749088244721,-1162.93,0.00022357,2]
[364390829,1749088244731,-813.1,0.00022358,2]
[364390830,1749088244740,-1370.15,0.00022358,2]
[364390831,1749088244750,-440.0,0.00022358,2]
[364390832,1749088244763,-323.11245644,0.00022358,2]
[364390833,1749088244772,-440.0,0.00022358,2]
[364390834,1749088244782,-685.13,0.00022358,2]
[364390835,1749088244792,-636.44,0.00022358,2]
[364390836,1749088244802,-158.83363985,0.00022358,2]
[364390837,1749088244812,-961.34,0.00022358,2]
[364390838,1749088244821,-440.0,0.00022358,2]
[364390839,1749088244831,-507.1,0.00022358,2]
[364390840,1749088244841,-539.92021083,0.00022358,2]
[364390841,1749088244851,-1004.14,0.00022358,2]
[364390842,1749088244863,-1886.24,0.00022358,2]
[364390843,1749088244873,-1672.97,0.00022359,2]
[364390844,1749088244884,-442.45,0.00022359,2]
[364390845,1749088244895,-1000.0,0.000224,2]
[364390846,1749088244906,-1476.01847224,0.00022417,7]
[364390847,1749088244916,-12672.94222187,0.0002242,7]
[364390848,1749088244926,-842.5625,0.0002242,7]
[364390849,1749088244936,-509.95078434,0.00022421,2]
[364390850,1749088244946,-1000.0,0.00022421,2]
[364390851,1749088244957,-1000.0,0.00022421,2]
[364390852,1749088244966,-1000.0,0.00022421,2]
[364390853,1749088244976,-1000.0,0.00022421,2]
[364390854,1749088244987,-225.51928788,0.00022422,2]
[364390855,1749088244997,-501.84793934,0.00022472,2]
[364390856,1749088245007,-504.35330771,0.00022472,2]
[364390857,1749088245017,-1000.0,0.00022472,2]
[364390858,1749088245026,-1000.0,0.00022478,2]
[364390859,1749088245036,-1000.0,0.00022478,2]
[364390860,1749088245045,-4000.0,0.00022531,4]
[364390861,1749088245055,-1089.81870008,0.00022536,2]
[364390862,1749088245065,-501.3996211,0.00022536,2]
[364390863,1749088245074,-1000.0,0.00022536,2]
[364390864,1749088245084,-501.36296399,0.00022536,2]
[364390865,1749088245094,-1000.0,0.00022536,2]
[364390867,1749088245104,-501.34259505,0.00022536,2]
[364390869,1749088245114,-1000.0,0.00022536,2]
[364390871,1749088245123,-1000.0,0.00022536,2]
[364390873,1749088245134,-1000.0,0.00022536,2]
[364390875,1749088245143,-500.54533957,0.00022536,2]
[364390877,1749088245153,-1003.00602574,0.00022536,2]
[364390879,1749088245163,-502.46747546,0.00022536,2]
[364390881,1749088245173,-151.0,0.000226,6]
[364390883,1749088245183,-1476.01847224,0.00022624,7]
[364390885,1749088245192,-450.0,0.00022631,2]
[364390887,1749088245202,-1450.61,0.00022631,2]
[364390890,1749088245212,-476.64,0.00022631,2]
[364390892,1749088245223,-837.2,0.00022631,2]
[364390907,1749088245349,-440.0,0.00022631,2]
[364390909,1749088245359,-1162.93,0.00022631,2]
[364390911,1749088245368,-813.1,0.00022632,2]
[364390914,1749088245378,-1370.15,0.00022632,2]
[364390915,1749088245387,-532.9829224,0.00022632,2]
[364390918,1749088245397,-440.0,0.00022632,2]
[364390920,1749088245406,-685.13,0.00022632,2]
[364390922,1749088245416,-636.44,0.00022632,2]
[364390924,1749088245427,-961.34,0.00022632,2]
[364390926,1749088245437,-440.0,0.00022632,2]
[364390928,1749088245446,-507.1,0.00022632,2]
[364390930,1749088245456,-1004.14,0.00022632,2]
[364390932,1749088245466,-1886.24,0.00022632,2]
[364390934,1749088245475,-151.0,0.00022633,7]
[364390936,1749088245485,-1672.97,0.00022633,2]
[364390938,1749088245495,-442.45,0.00022633,2]
[364390940,1749088245505,-5000.0,0.00022637,2]
[364390942,1749088245515,-1500.0,0.00022668,2]
[364390944,1749088245525,-1500.0,0.00022668,2]
[364390946,1749088245536,-1800.0,0.00022668,2]
[364390948,1749088245546,-823.0,0.00022674,2]
[364390950,1749088245556,-151.0,0.00022698,7]
[364390952,1749088245567,-151.0,0.00022698,7]
[364390954,1749088245578,-760.504832,0.00022721,3]
[364390956,1749088245588,-1721.757,0.00022753,2]
[364390958,1749088245598,-709.28,0.00022753,2]
[364390960,1749088245608,-407.439,0.00022753,2]
[364390962,1749088245618,-150.184,0.00022753,2]
[364390964,1749088245628,-1476.01847224,0.00022831,8]
[364390966,1749088245640,-7411.34278162,0.000229,2]
[364390969,1749088245659,-2871.71787705,0.000229,2]
[364390972,1749088245671,-4731.81020467,0.000229,2]
[364390974,1749088245683,-624.20491612,0.000229,2]
[364391002,1749088245952,-401.00586286,0.00017425,2]
[364391004,1749088245961,-78.99413714,0.00017425,2]
[364391019,1749088246092,-322.43798937,0.00017425,2]
[364391021,1749088246102,-440.0,0.00017425,2]
[364391023,1749088246112,-400.82470072,0.00017425,2]
[364391025,1749088246121,-440.0,0.00017426,2]
[364391028,1749088246132,-440.0,0.00017699,2]
[364391030,1749088246141,-440.0,0.00017699,2]
[364391032,1749088246153,-440.0,0.000177,2]
[364391034,1749088246163,-530.61050951,0.00017973,2]
[364391036,1749088246173,-440.0,0.00017973,2]
[364391039,1749088246182,-440.0,0.00017974,2]
[364391041,1749088246191,-440.0,0.00018247,2]
[364391043,1749088246201,-440.0,0.00018248,2]
[364391045,1749088246212,-440.0,0.00018521,2]
[364391047,1749088246227,-440.0,0.00018522,2]
[364391050,1749088246242,-440.0,0.00018795,2]
[364391053,1749088246256,-440.0,0.00018796,2]
[364391055,1749088246267,-440.0,0.00019069,2]
[364391057,1749088246281,-160.0,0.00019156,2]
[364391060,1749088246295,-440.0,0.00019343,2]
[364391062,1749088246309,-440.0,0.00019617,2]
[364391065,1749088246322,-440.0,0.00019891,2]
[364391067,1749088246337,-440.0,0.00020165,2]
[364391070,1749088246351,-2366.68546714,0.000229,2]
[364391098,1749088246604,-400.83065717,0.00017425,2]
[364391100,1749088246616,-440.0,0.00017425,2]
[364391102,1749088246629,-440.0,0.00017425,2]
[364391104,1749088246641,-440.0,0.00017426,2]
[364391109,1749088246656,-440.0,0.00017699,2]
[364391112,1749088246668,-440.0,0.00017699,2]
[364391114,1749088246679,-440.0,0.000177,2]
[364391116,1749088246690,-440.0,0.0001907,2]
[364391119,1749088246703,-440.0,0.00019344,2]
[364391121,1749088246715,-440.0,0.00019618,2]
[364391123,1749088246726,-440.0,0.00019892,2]
[364391125,1749088246738,-440.0,0.00020166,2]
[364391128,1749088246750,-440.0,0.00020439,2]
[364391130,1749088246761,-440.0,0.0002044,2]
[364391132,1749088246772,-440.0,0.00020713,2]
[364391134,1749088246784,-440.0,0.00020714,2]
[364391137,1749088246796,-440.0,0.00020987,2]
[364391139,1749088246807,-52.39892717,0.00020988,2]
[364391142,1749088246828,-414.25466788,0.00017973,2]
[364391144,1749088246840,-387.60107283,0.00020988,2]
[364391146,1749088246852,-440.0,0.00021261,2]
[364391149,1749088246864,-348.9,0.00021262,2]
[364391151,1749088246876,-440.0,0.00021535,2]
[364391153,1749088246889,-440.0,0.00021809,2]
[364391156,1749088246901,-440.0,0.00022083,2]
[364391158,1749088246916,-268.66425929,0.00022357,2]
[364391659,1749088855302,700.0,0.00025,120]
[364391716,1749089432127,-215.9890157,0.00016425,2]
[364391717,1749089432138,-244.7211855,0.00016764,2]
[364391718,1749089432148,-200.94979533,0.00017226,2]
[364391719,1749089432157,-300.0,0.00017422,2]
[364391720,1749089432166,-300.0,0.00017423,2]
[364391721,1749089432176,-440.0,0.00017423,2]
[364391722,1749089432185,-440.0,0.00017423,2]
[364391723,1749089432195,-440.0,0.00017423,2]
[364391724,1749089432204,-576.27,0.00017423,2]
[364391725,1749089432213,-1325.23,0.00017423,2]
[364391726,1749089432223,-1552.48,0.00017423,2]
[364391727,1749089432233,-440.0,0.00017423,2]
[364391728,1749089432242,-440.0,0.00017423,2]
[364391729,1749089432253,-440.0,0.00017423,2]
[364391730,1749089432263,-440.0,0.00017423,2]
[364391733,1749089432272,-440.0,0.00017423,2]
[364391736,1749089432287,-440.0,0.00017423,2]
[364391738,1749089432297,-440.0,0.00017423,2]
[364391739,1749089432306,-440.0,0.00017423,2]
[364391740,1749089432315,-253.38,0.00017423,2]
[364391741,1749089432325,-440.0,0.00017423,2]
[364391742,1749089432334,-440.0,0.00017423,2]
[364391743,1749089432343,-440.0,0.00017423,2]
[364391744,1749089432355,-440.0,0.00017423,2]
[364391745,1749089432367,-440.0,0.00017423,2]
[364391746,1749089432506,-916.66,0.00017423,2]
[364391747,1749089432516,-810.31,0.00017423,2]
[364391748,1749089432526,-224.1123684,0.00017423,2]
[364391749,1749089432564,-222.60839034,0.00017423,2]
[364391750,1749089432574,-463.51486158,0.00017424,2]
[364391751,1749089432583,-500.0,0.00017424,2]
[364391752,1749089432593,-208.67475097,0.00017424,2]
[364391753,1749089432603,-440.0,0.00017424,2]
[364391754,1749089432612,-440.0,0.00017424,2]
[364391755,1749089432621,-439.29570342,0.00017424,2]
[364391756,1749089432630,-187.02358768,0.00017424,2]
[364391757,1749089432640,-445.25779342,0.00017424,2]
[364391758,1749089432649,-483.18128638,0.00017424,2]
[364391759,1749089432659,-440.0,0.00017424,2]
[364391760,1749089432668,-440.0,0.00017424,2]
[364391761,1749089432677,-440.0,0.00017424,2]
[364391762,1749089432686,-440.0,0.00017424,2]
[364391763,1749089432696,-440.0,0.00017424,2]
[364391764,1749089432705,-440.96631272,0.00017424,2]
[364391765,1749089432714,-471.18807862,0.00017424,2]
[364391766,1749089432723,-440.0,0.00017424,2]
[364391767,1749089432732,-440.0,0.00017424,2]
[364391768,1749089432742,-440.0,0.00017424,2]
[364391769,1749089432751,-557.28511718,0.00017424,2]
[364391770,1749089432760,-449.79694498,0.00017424,2]
[364391771,1749089432769,-194.33849012,0.00017424,2]
[364391772,1749089432778,-440.0,0.00017424,2]
[364391773,1749089432787,-440.0,0.00017424,2]
[364391774,1749089432796,-440.0,0.00017424,2]
[364391775,1749089432806,-532.26312975,0.00017424,2]
[364391776,1749089432815,-430.0,0.00017424,2]
[364391777,1749089432824,-440.0,0.00017424,2]
[364391778,1749089432833,-440.0,0.00017424,2]
[364391779,1749089432842,-430.0,0.00017424,2]
[364391780,1749089432851,-440.0,0.00017424,2]
[364391781,1749089432861,-439.24169734,0.00017424,2]
[364391782,1749089432871,-430.0,0.00017424,2]
[364391783,1749089432880,-440.0,0.00017424,2]
[364391784,1749089432890,-161.17281034,0.00017424,2]
[364391831,1749089438048,-268.82718966,0.00017424,2]
[364391833,1749089438060,-440.0,0.00017424,2]
[364391834,1749089438069,-440.0,0.00017424,2]
[364391835,1749089438079,-430.0,0.00017424,2]
[364391836,1749089438088,-440.0,0.00017424,2]
[364391837,1749089438097,-458.17,0.00017424,2]
[364391838,1749089438106,-440.0,0.00017424,2]
[364391839,1749089438115,-440.0,0.00017424,2]
[364391840,1749089438126,-440.0,0.00017424,2]
[364391841,1749089438136,-430.0,0.00017424,2]
[364391842,1749089438146,-190.1771151,0.00017424,2]
[364391843,1749089438156,-401.40974133,0.00017424,2]
[364391844,1749089438164,-523.8299989,0.00017424,2]
[364391845,1749089438173,-440.0,0.00017424,2]
[364391846,1749089438183,-440.0,0.00017424,2]
[364391847,1749089438196,-401.10989109,0.00017424,2]
[364391848,1749089438209,-440.0,0.00017424,2]
[364391849,1749089438219,-400.90856303,0.00017424,2]
[364391850,1749089438228,-340.0,0.00017424,2]
[364391851,1749089438237,-440.0,0.00017424,2]
[364391852,1749089438245,-440.0,0.00017424,2]
[364391853,1749089438255,-440.0,0.00017424,2]
[364391854,1749089438263,-400.46493082,0.00017424,2]
[364391855,1749089438277,-401.70148269,0.00017424,2]
[364391856,1749089438287,-440.0,0.00017424,2]
[364391857,1749089438296,-440.0,0.00017424,2]
[364391858,1749089438305,-440.0,0.00017424,2]
[364391859,1749089438314,-440.0,0.00017424,2]
[364391860,1749089438324,-402.75993936,0.00017424,2]
[364391861,1749089438332,-440.0,0.00017424,2]
[364391862,1749089438341,-440.0,0.00017424,2]
[364391863,1749089438350,-440.0,0.00017424,2]
[364391864,1749089438359,-440.0,0.00017424,2]
[364391865,1749089438368,-400.4416752,0.00017424,2]
[364391866,1749089438377,-390.86624157,0.00017424,2]
[364391868,1749089438387,-440.0,0.00017424,2]
[364391870,1749089438396,-445.7589411,0.00017424,2]
[364391872,1749089438406,-438.62835091,0.00017424,2]
[364391874,1749089438415,-401.88033197,0.00017424,2]
[364391876,1749089438425,-440.0,0.00017424,2]
[364391878,1749089438434,-440.0,0.00017424,2]
[364391880,1749089438444,-440.0,0.00017424,2]
[364391882,1749089438453,-400.61325322,0.00017424,2]
[364391884,1749089438463,-442.17673484,0.00017424,2]
[364391886,1749089438473,-400.43146016,0.00017424,2]
[364391888,1749089438482,-460.96160819,0.00017424,2]
[364391890,1749089438492,-400.48184674,0.00017424,2]
[364391892,1749089438501,-440.0,0.00017424,2]
[364391894,1749089438511,-440.0,0.00017424,2]
[364391896,1749089438520,-401.24653265,0.00017424,2]
[364391898,1749089438530,-440.0,0.00017424,2]
[364391900,1749089438540,-440.0,0.00017424,2]
[364391902,1749089438550,-445.31080644,0.00017424,2]
[364391904,1749089438559,-557.52864965,0.00017424,2]
[364391906,1749089438568,-440.0,0.00017424,2]
[364391908,1749089438577,-440.0,0.00017424,2]
[364391910,1749089438588,-440.0,0.00017424,2]
[364391912,1749089438597,-440.0,0.00017424,2]
[364391914,1749089438607,-440.0,0.00017424,2]
[364391916,1749089438616,-422.39186505,0.00017424,2]
[364391919,1749089438627,-440.0,0.00017424,2]
[364391921,1749089438636,-440.0,0.00017424,2]
[364391923,1749089438646,-404.72571244,0.00017424,2]
[364391925,1749089438656,-440.0,0.00017424,2]
[364391927,1749089438666,-440.0,0.00017424,2]
[364391929,1749089438674,-533.32,0.00017424,2]
[364391931,1749089438684,-517.76,0.00017424,2]
[364391932,1749089438693,-462.22815629,0.00017424,2]
[364391934,1749089438703,-440.0,0.00017424,2]
[364391937,1749089438712,-440.0,0.00017424,2]
[364391938,1749089438722,-440.0,0.00017424,2]
[364391941,1749089438733,-440.0,0.00017424,2]
[364391943,1749089438742,-440.0,0.00017424,2]
[364391945,1749089438751,-440.0,0.00017424,2]
[364391947,1749089438760,-400.41279054,0.00017424,2]
[364391949,1749089438769,-440.0,0.00017424,2]
[364391950,1749089438780,-440.0,0.00017424,2]
[364391952,1749089438790,-401.0224453,0.00017424,2]
[364391954,1749089438800,-440.0,0.00017424,2]
[364391956,1749089438809,-440.0,0.00017424,2]
[364391958,1749089438819,-274.67672343,0.00017424,2]
[364391960,1749089438829,-569.08,0.00017424,2]
[364391962,1749089438839,-370.85700147,0.00017424,2]
[364391964,1749089438848,-440.0,0.00017424,2]
[364391966,1749089438858,-440.0,0.00017424,2]
[364391968,1749089438867,-440.0,0.00017424,2]
[364391970,1749089438877,-440.0,0.00017424,2]
[364391972,1749089438887,-444.35704521,0.00017424,2]
[364391973,1749089438896,-184.72735757,0.00017424,2]
[364391974,1749089438906,-423.0909058,0.00017424,2]
[364391975,1749089438915,-440.0,0.00017424,2]
[364391976,1749089438924,-393.19828535,0.00017424,2]
[364391977,1749089438934,-421.68218199,0.00017424,2]
[364391978,1749089438944,-440.0,0.00017424,2]
[364391979,1749089438953,-440.27990337,0.00017424,2]
[364391980,1749089438963,-640.11,0.00017424,2]
[364391981,1749089438973,-440.0,0.00017424,2]
[364391982,1749089438983,-495.49887423,0.00017424,2]
[364391983,1749089438992,-420.0,0.00017424,2]
[364391984,1749089439002,-440.0,0.00017424,2]
[364391985,1749089439013,-440.0,0.00017424,2]
[364391986,1749089439023,-247.2233159,0.00017424,2]
[364391987,1749089439033,-440.0,0.00017424,2]
[364391988,1749089439042,-440.0,0.00017424,2]
[364391989,1749089439052,-394.1402983,0.00017424,2]
[364391990,1749089439062,-334.46002821,0.00017424,2]
[364391991,1749089439072,-462.19905113,0.00017424,2]
[364391992,1749089439081,-435.03460497,0.00017424,2]
[364391993,1749089439091,-430.0,0.00017424,2]
[364391994,1749089439100,-440.0,0.00017424,2]
[364391995,1749089439110,-440.0,0.00017424,2]
[364391996,1749089439120,-346.29506361,0.00017424,2]
[364391997,1749089439167,-83.70493639,0.00017424,2]
[364391998,1749089439177,-440.0,0.00017424,2]
[364391999,1749089439186,-430.0,0.00017424,2]
[364392000,1749089439196,-439.74926476,0.00017424,2]
[364392001,1749089439206,-141.16897483,0.00017424,2]
[364392002,1749089439218,-292.2979088,0.00017424,2]
[364392003,1749089439228,-440.0,0.00017424,2]
[364392005,1749089439238,-440.0,0.00017424,2]
[364392007,1749089439248,-453.02846246,0.00017424,2]
[364392009,1749089439257,-678.77,0.00017424,2]
[364392011,1749089439266,-430.14055849,0.00017424,2]
[364392013,1749089439277,-440.0,0.00017424,2]
[364392014,1749089439290,-430.0,0.00017424,2]
[364392016,1749089439300,-440.0,0.00017424,2]
[364392019,1749089439310,-440.0,0.00017424,2]
[364392020,1749089439319,-423.67424316,0.00017424,2]
[364392022,1749089439330,-420.10536947,0.00017424,2]
[364392024,1749089439340,-430.0,0.00017424,2]
[364392026,1749089439349,-440.0,0.00017424,2]
[364392028,1749089439361,-440.0,0.00017424,2]
[364392030,1749089439371,-440.0,0.00017424,2]
[364392032,1749089439381,-334.64172634,0.00017424,2]
[364392034,1749089439390,-1228.35,0.00017424,2]
[364392036,1749089439400,-440.0,0.00017424,2]
[364392038,1749089439409,-1161.99,0.00017424,2]
[364392040,1749089439419,-440.0,0.00017424,2]
[364392043,1749089439430,-403.1626727,0.00017424,2]
[364392045,1749089439439,-440.0,0.00017424,2]
[364392047,1749089439450,-440.0,0.00017424,2]
[364392049,1749089439459,-440.0,0.00017424,2]
[364392051,1749089439468,-440.0,0.00017424,2]
[364392053,1749089439478,-440.0,0.00017424,2]
[364392055,1749089439487,-427.37672073,0.00017424,2]
[364392057,1749089439498,-428.12186632,0.00017424,2]
[364392059,1749089439508,-423.77400483,0.00017425,2]
[364392061,1749089439517,-440.0,0.00017425,2]
[364392063,1749089439526,-268.1160808,0.00017425,2]
[364392065,1749089439536,-252.872,0.00017425,2]
[364392066,1749089439546,-440.0,0.00017425,2]
[364392068,1749089439555,-426.0325221,0.00017425,2]
[364392070,1749089439564,-461.60822602,0.00017425,2]
[364392072,1749089439575,-159.33103659,0.00017425,2]
[364392075,1749089439586,-446.99495305,0.00017425,2]
[364392076,1749089439596,-421.0676058,0.00017425,2]
[364392078,1749089439606,-205.93978856,0.00017425,2]
[364392080,1749089439615,-444.96893586,0.00017425,2]
[364392082,1749089439626,-423.81433392,0.00017425,2]
[364392085,1749089439635,-440.0,0.00017425,2]
[364392087,1749089439645,-440.0,0.00017425,2]
[364392089,1749089439655,-446.12369783,0.00017425,2]
[364392091,1749089439664,-464.06365339,0.00017425,2]
[364392092,1749089439673,-452.69091265,0.00017425,2]
[364392094,1749089439683,-444.72178327,0.00017425,2]
[364392096,1749089439692,-451.66602448,0.00017425,2]
[364392098,1749089439703,-444.67062512,0.00017425,2]
[364392100,1749089439712,-448.30425217,0.00017425,2]
[364392102,1749089439721,-441.34750329,0.00017425,2]
[364392104,1749089439731,-464.97752175,0.00017425,2]
[364392106,1749089439740,-453.76425296,0.00017425,2]
[364392108,1749089439749,-451.62191499,0.00017425,2]
[364392110,1749089439758,-451.55901371,0.00017425,2]
[364392112,1749089439768,-449.12595653,0.00017425,2]
[364392114,1749089439777,-421.95880333,0.00017425,2]
[364392116,1749089439787,-442.23400367,0.00017425,2]
[364392118,1749089439796,-440.0,0.00017425,2]
[364392120,1749089439805,-447.97478659,0.00017425,2]
[364392122,1749089439816,-427.84091838,0.00017425,2]
[364392125,1749089439826,-425.88227029,0.00017425,2]
[364392127,1749089439838,-400.70451454,0.00017425,2]
[364392129,1749089439848,-464.70185863,0.00017425,2]
[364392131,1749089439857,-319.35480461,0.00017425,2]
[364392133,1749089439866,-443.23047862,0.00017425,2]
[364392135,1749089439877,-449.68130432,0.00017425,2]
[364392137,1749089439887,-440.0,0.00017425,2]
[364392139,1749089439896,-452.67523757,0.00017425,2]
[364392141,1749089439907,-440.0,0.00017425,2]
[364392143,1749089439916,-440.0,0.00017425,2]
[364392145,1749089439925,-440.0,0.00017425,2]
[364392147,1749089439935,-440.0,0.00017425,2]
[364392149,1749089439945,-440.0,0.00017425,2]
[364392151,1749089439955,-242.2312683,0.00017425,2]
[364392153,1749089439964,-242.90444586,0.00017425,2]
[364392155,1749089439973,-437.2165518,0.00017425,2]
[364392157,1749089439982,-440.0,0.00017425,2]
[364392159,1749089439992,-440.0,0.00017425,2]
[364392161,1749089440001,-403.29035879,0.00017425,2]
[364392163,1749089440011,-440.0,0.00017425,2]
[364392165,1749089440021,-442.42196881,0.00017425,2]
[364392167,1749089440030,-434.66396762,0.00017425,2]
[364392169,1749089440040,-440.0,0.00017425,2]
[364392171,1749089440050,-440.0,0.00017425,2]
[364392173,1749089440059,-453.5303612,0.00017425,2]
[364392175,1749089440068,-440.0,0.00017425,2]
[364392177,1749089440078,-440.0,0.00017425,2]
[364392179,1749089440088,-437.83320023,0.00017425,2]
[364392181,1749089440097,-533.17999333,0.00017425,2]
[364392183,1749089440107,-440.0,0.00017425,2]
[364392195,1749089440207,-440.0,0.00017425,2]
[364392198,1749089440233,-440.0,0.00017425,2]
[364392200,1749089440243,-440.0,0.00017425,2]
[364392202,1749089440252,-440.0,0.00017425,2]
[364392204,1749089440262,-482.85335105,0.00017425,2]
[364392206,1749089440271,-440.0,0.00017425,2]
[364392208,1749089440285,-440.0,0.00017425,2]
[364392210,1749089440294,-444.99437482,0.00017425,2]
[364392212,1749089440304,-448.49876478,0.00017425,2]
[364392214,1749089440314,-440.0,0.00017425,2]
[364392216,1749089440323,-238.38541564,0.00017425,2]
[364392218,1749089440333,-444.02298301,0.00017425,2]
[364392220,1749089440343,-403.75576383,0.00017425,2]
[364392222,1749089440352,-503.19527479,0.00017425,2]
[364392224,1749089440363,-445.5969923,0.00017425,2]
[364392226,1749089440373,-440.0,0.00017425,2]
[364392228,1749089440382,-449.97283349,0.00017425,2]
[364392230,1749089440391,-452.87713543,0.00017425,2]
[364392232,1749089440401,-440.0,0.00017425,2]
[364392234,1749089440412,-430.0,0.00017425,2]
[364392236,1749089440421,-440.0,0.00017697,2]
[364392238,1749089440431,-576.27,0.00017697,2]
[364392240,1749089440440,-1325.23,0.00017697,2]
[364392242,1749089440450,-1552.48,0.00017697,2]
[364392244,1749089440459,-440.0,0.00017697,2]
[364392246,1749089440468,-440.0,0.00017697,2]
[364392248,1749089440478,-440.0,0.00017697,2]
[364392250,1749089440487,-486.42,0.00017697,2]
[364392252,1749089440496,-440.0,0.00017697,2]
[364392254,1749089440505,-440.0,0.00017697,2]
[364392256,1749089440515,-440.0,0.00017697,2]
[364392258,1749089440525,-440.0,0.00017697,2]
[364392260,1749089440534,-440.0,0.00017697,2]
[364392262,1749089440544,-440.0,0.00017697,2]
[364392264,1749089440553,-916.66,0.00017697,2]
[364392266,1749089440562,-810.31,0.00017697,2]
[364392268,1749089440572,-410.0,0.00017698,2]
[364392270,1749089440581,-410.0,0.00017698,2]
[364392272,1749089440591,-440.0,0.00017698,2]
[364392274,1749089440600,-440.0,0.00017698,2]
[364392276,1749089440609,-440.0,0.00017698,2]
[364392278,1749089440619,-440.0,0.00017698,2]
[364392280,1749089440629,-410.0,0.00017698,2]
[364392282,1749089440638,-419.45953224,0.00017698,2]
[364392284,1749089440647,-410.0,0.00017698,2]
[364392286,1749089440657,-410.0,0.00017698,2]
[364392288,1749089440667,-410.0,0.00017698,2]
[364392290,1749089440677,-440.0,0.00017698,2]
[364392292,1749089440686,-410.0,0.00017698,2]
[364392294,1749089440696,-440.0,0.00017698,2]
[364392296,1749089440705,-440.0,0.00017698,2]
[364392298,1749089440715,-410.0,0.00017698,2]
[364392300,1749089440724,-396.07624162,0.00017698,2]
[364392302,1749089440734,-440.0,0.00017698,2]
[364392304,1749089440744,-410.0,0.00017698,2]
[364392306,1749089440753,-440.0,0.00017698,2]
[364392308,1749089440763,-440.0,0.00017698,2]
[364392310,1749089440774,-440.0,0.00017698,2]
[364392312,1749089440783,-392.27098529,0.00017698,2]
[364392314,1749089440792,-440.0,0.00017698,2]
[364392316,1749089440801,-440.0,0.00017698,2]
[364392318,1749089440811,-440.0,0.00017698,2]
[364392320,1749089440820,-440.0,0.00017698,2]
[364392322,1749089440830,-440.0,0.00017698,2]
[364392324,1749089440839,-440.0,0.00017698,2]
[364392326,1749089440848,-440.0,0.00017698,2]
[364392328,1749089440857,-440.0,0.00017698,2]
[364392330,1749089440867,-430.0,0.00017698,2]
[364392332,1749089440877,-440.0,0.00017698,2]
[364392333,1749089440887,-440.0,0.00017698,2]
[364392336,1749089440897,-440.0,0.00017698,2]
[364392338,1749089440907,-501.83,0.00017698,2]
[364392339,1749089440916,-440.0,0.00017698,2]
[364392342,1749089440926,-189.84,0.00017698,2]
[364392344,1749089440936,-440.0,0.00017698,2]
[364392346,1749089440946,-401.23211816,0.00017698,2]
[364392348,1749089440957,-193.63569838,0.00017698,2]
[364392350,1749089440967,-440.0,0.00017698,2]
[364392352,1749089440976,-182.67685278,0.00017698,2]
[364392354,1749089440986,-471.91952543,0.00017698,2]
[364392356,1749089440995,-422.98628406,0.00017698,2]
[364392358,1749089441005,-533.32,0.00017698,2]
[364392360,1749089441015,-517.76,0.00017698,2]
[364392362,1749089441024,-440.0,0.00017698,2]